bitfinex-derivatives/quotes_BTCF0:USTF0_20251028
["timestamp","ask_amount","ask_price","bid_price","bid_amount"]
[1761677181570,0.17405099,114710.0,114700.0,0.84793052]
[1761677182257,0.00308317,114710.0,114700.0,1.02149834]
[1761677182663,0.55434782,114730.0,114720.0,0.02178]
[1761677182869,0.55434782,114730.0,114720.0,0.21523]
[1761677183072,0.40531,114730.0,114720.0,0.47336532]
[1761677183270,0.38338,114730.0,114720.0,0.47336532]
[1761677183465,0.57627782,114740.0,114730.0,0.05735]
[1761677184674,0.58227782,114740.0,114730.0,0.05735]
[1761677186077,0.22147782,114740.0,114730.0,0.05735]
[1761677186575,0.39244564,114740.0,114730.0,0.05735]
[1761677187979,0.39244564,114740.0,114730.0,0.1445099]
[1761677188379,0.05051,114740.0,114730.0,0.1445099]
[1761677188582,0.39244564,114740.0,114730.0,0.1445099]
[1761677189480,0.39244564,114740.0,114730.0,0.05735]
[1761677189680,0.75324564,114740.0,114730.0,0.05735]
[1761677190378,0.41131,114740.0,114730.0,0.1445099]
[1761677190576,0.75324564,114740.0,114730.0,0.05735]
[1761677195084,0.04446,114730.0,114720.0,0.3025973]
[1761677195278,0.21542782,114730.0,114720.0,0.3025973]
[1761677196978,0.04446,114730.0,114720.0,0.3025973]
[1761677197177,0.21842782,114730.0,114720.0,0.3025973]
[1761677198280,0.21842782,114730.0,114720.0,0.47356512]
[1761677199295,0.21842782,114730.0,114720.0,0.47356532]
[1761677199789,0.21842782,114730.0,114720.0,0.3025975]
[1761677200087,0.21842782,114730.0,114720.0,0.21543]
[1761677200291,0.21842782,114730.0,114720.0,0.21539]
[1761677200687,0.38939564,114730.0,114720.0,0.21539]
[1761677200888,0.22978782,114730.0,114720.0,0.21539]
[1761677201087,0.59058782,114730.0,114720.0,0.21539]
[1761677202792,0.59058782,114730.0,114720.0,0.3025575]
[1761677203087,0.57922782,114730.0,114720.0,0.3025575]
[1761677203990,0.21842782,114730.0,114720.0,0.3025575]
[1761677213497,0.21842782,114730.0,114720.0,0.21539]
[1761677214003,0.21842782,114730.0,114720.0,0.3025575]
[1761677214795,0.21842782,114730.0,114720.0,0.21539]
[1761677215197,0.21842782,114730.0,114720.0,0.3025575]
[1761677216008,0.21842782,114730.0,114720.0,0.21535]
[1761677216305,0.57922782,114730.0,114720.0,0.21535]
[1761677217711,0.5792928,114730.0,114720.0,0.21535]
[1761677218111,0.5792928,114730.0,114720.0,0.3025175]
[1761677219012,0.5792928,114730.0,114720.0,0.21535]
[1761677220208,0.40826,114730.0,114720.0,0.21535]
[1761677220509,0.38313,114760.0,114750.0,0.05661]
[1761677220709,0.60097034,114760.0,114750.0,0.21441]
[1761677221318,0.60097034,114760.0,114750.0,0.20143]
[1761677221614,0.60097034,114760.0,114750.0,0.21441]
[1761677222614,0.60197034,114760.0,114750.0,0.21441]
[1761677222814,0.60197034,114760.0,114750.0,0.21541]
[1761677222815,0.60797034,114760.0,114750.0,0.21541]
[1761677223115,0.60797034,114760.0,114750.0,0.2242469]
[1761677223616,0.60797034,114760.0,114750.0,0.21541]
[1761677224909,0.60797034,114760.0,114750.0,0.3025547]
[1761677225109,0.60797034,114760.0,114750.0,0.31134242]
[1761677226016,0.60797034,114760.0,114750.0,0.22419772]
[1761677226420,0.43693754,114760.0,114750.0,0.22419772]
[1761677226615,0.60797034,114760.0,114750.0,0.22419772]
[1761677228521,0.60797034,114760.0,114750.0,0.21541]
[1761677229520,0.60797034,114760.0,114750.0,0.22396975]
[1761677230322,0.60797034,114760.0,114750.0,0.21541]
[1761677234829,0.41226,114760.0,114750.0,0.3025547]
[1761677235034,0.5832928,114760.0,114750.0,0.3025547]
[1761677235232,0.41226,114760.0,114750.0,0.3025547]
[1761677235621,0.5832928,114760.0,114750.0,0.3025547]
[1761677237224,0.2224928,114760.0,114750.0,0.3025547]
[1761677237417,0.05146,114760.0,114750.0,0.3025547]
[1761677237621,0.2224928,114760.0,114750.0,0.3025547]
[1761677239633,0.2224928,114760.0,114750.0,0.21541]
[1761677240733,0.2224928,114760.0,114750.0,0.3025547]
[1761677241227,0.2224928,114760.0,114750.0,0.21541]
[1761677241433,0.2224928,114760.0,114750.0,0.3025547]
[1761677245522,0.2224928,114760.0,114750.0,0.21541]
[1761677246630,0.007,114760.0,114750.0,0.4735875]
[1761677246831,0.007,114760.0,114750.0,0.8343875]
[1761677247830,0.5763228,114790.0,114780.0,0.05761]
[1761677248030,0.60117031,114790.0,114780.0,0.21537]
[1761677249937,0.60317031,114790.0,114780.0,0.21537]
[1761677250132,0.3628,114790.0,114780.0,0.3024919]
[1761677250337,0.014,114790.0,114780.0,0.8373247]
[1761677251837,0.002,114790.0,114780.0,0.8343247]
[1761677252038,0.005,114790.0,114780.0,0.8463247]
[1761677252731,0.005,114790.0,114780.0,1.6173575]
[1761677252937,0.0045,114800.0,114790.0,0.1447243]
[1761677253137,0.0045,114800.0,114790.0,0.6765571]
[1761677253528,0.2146428,114820.0,114810.0,0.1307091]
[1761677253735,0.04361,114820.0,114810.0,0.6631691]
[1761677254833,0.02348,114820.0,114810.0,0.6681691]
[1761677255740,0.02348,114820.0,114810.0,0.67673754]
[1761677255941,0.02348,114820.0,114810.0,0.84777034]
[1761677256233,0.5318328,114830.0,114820.0,0.04263]
[1761677256234,0.5749728,114830.0,114820.0,0.04263]
[1761677256429,0.5749728,114830.0,114820.0,0.05657]
[1761677256626,0.5749728,114830.0,114820.0,0.1436615]
[1761677256831,0.40394,114830.0,114820.0,0.1436615]
[1761677257133,0.5749728,114830.0,114820.0,0.1436615]
[1761677257530,0.5779728,114830.0,114820.0,0.1536615]
[1761677258336,0.40694,114830.0,114820.0,0.1536615]
[1761677258541,0.5779728,114830.0,114820.0,0.1536615]
[1761677259443,0.40694,114830.0,114820.0,0.1536615]
[1761677259745,0.5779728,114830.0,114820.0,0.1536615]
[1761677259944,0.3638,114830.0,114820.0,0.1536615]
[1761677260144,0.40694,114830.0,114820.0,0.1536615]
[1761677260737,0.5779728,114830.0,114820.0,0.1536615]
[1761677261345,0.2171728,114830.0,114820.0,0.1536615]
[1761677262345,0.5893328,114830.0,114820.0,0.01]
[1761677262544,0.61648312,114830.0,114820.0,0.16768]
[1761677262742,0.78751592,114830.0,114820.0,0.01]
[1761677262944,0.61648312,114830.0,114820.0,0.01]
[1761677263446,0.63648312,114830.0,114820.0,0.01]
[1761677264148,0.61648312,114830.0,114820.0,0.01]
[1761677264752,0.63648312,114830.0,114820.0,0.01]
[1761677265044,0.63388312,114830.0,114820.0,0.01]
[1761677267353,0.99468312,114830.0,114820.0,0.01]
[1761677267853,1.59468312,114830.0,114820.0,0.01]
[1761677268550,0.02101,114790.0,114780.0,0.4618594]
[1761677268741,0.2141728,114790.0,114780.0,0.57505]
[1761677268945,0.2141728,114790.0,114780.0,0.21425]
[1761677269146,0.5749728,114790.0,114780.0,0.21425]
[1761677269653,0.5749728,114790.0,114780.0,0.22386269]
[1761677269842,0.5789728,114790.0,114780.0,0.24486269]
[1761677270041,0.5789728,114790.0,114780.0,0.33198459]
[1761677270249,0.40394,114790.0,114780.0,0.31098459]
[1761677270449,0.5769728,114790.0,114780.0,0.3113719]
[1761677271562,0.5769728,114790.0,114780.0,0.32018933]
[1761677271859,0.5769728,114790.0,114780.0,0.31918933]
[1761677272061,0.5769728,114790.0,114780.0,0.22325]
[1761677273560,0.5769728,114790.0,114780.0,0.23203766]
[1761677274063,0.5769728,114790.0,114780.0,0.22325]
[1761677276656,0.40594,114790.0,114780.0,0.22325]
[1761677276858,0.40594,114790.0,114780.0,0.3103719]
[1761677278964,0.40594,114790.0,114780.0,0.22325]
[1761677279156,0.5769728,114790.0,114780.0,0.22325]
[1761677279762,0.5767931,114790.0,114780.0,0.22325]
[1761677280464,0.7476462,114790.0,114780.0,0.16668]
[1761677280963,0.77228855,114790.0,114780.0,0.20931]
[1761677281958,0.77228855,114790.0,114780.0,0.22325]
[1761677282161,0.60143545,114790.0,114780.0,0.22325]
[1761677282464,0.60138644,114790.0,114780.0,0.22325]
[1761677282764,0.60138644,114790.0,114780.0,0.3103719]
[1761677283468,0.5767931,114790.0,114780.0,0.3103719]
[1761677285061,0.40594,114790.0,114780.0,0.3103719]
[1761677285262,0.5767931,114790.0,114780.0,0.3103719]
[1761677286369,0.6013875,114790.0,114780.0,0.3103719]
[1761677289969,0.6013875,114790.0,114780.0,0.22325]
[1761677290169,0.6013875,114790.0,114780.0,0.3103719]
[1761677290370,0.2405875,114790.0,114780.0,0.481225]
[1761677291666,0.6013875,114790.0,114780.0,0.3941031]
[1761677291874,0.6013875,114790.0,114780.0,0.22325]
[1761677292068,0.6013875,114790.0,114780.0,0.3941031]
[1761677292869,0.6013875,114790.0,114780.0,0.3103719]
[1761677293172,0.6013875,114790.0,114780.0,0.481225]
[1761677296173,0.6013875,114790.0,114780.0,0.3103719]
[1761677296372,0.6013875,114790.0,114780.0,0.481225]
[1761677296674,0.5767931,114790.0,114780.0,0.481225]
[1761677297172,0.60147612,114790.0,114780.0,0.481225]
[1761677298071,0.60147612,114790.0,114780.0,0.3103719]
[1761677298277,0.60147612,114790.0,114780.0,0.481225]
[1761677298872,0.43062302,114790.0,114780.0,0.481225]
[1761677299077,0.60147612,114790.0,114780.0,0.481225]
[1761677299779,0.24067612,114790.0,114780.0,0.481225]
[1761677300174,0.21854612,114790.0,114780.0,0.842025]
[1761677300480,0.24039612,114790.0,114780.0,0.842025]
[1761677301174,0.2157131,114790.0,114780.0,0.842025]
[1761677301675,0.40505,114820.0,114810.0,0.1428092]
[1761677301875,0.42976554,114820.0,114810.0,0.3136623]
[1761677302074,0.06896554,114820.0,114810.0,0.3136623]
[1761677302373,0.7336631,114830.0,114820.0,0.1428016]
[1761677302975,0.5759031,114830.0,114820.0,0.1428016]
[1761677303377,0.7336231,114830.0,114820.0,0.1428016]
[1761677303575,0.5759031,114830.0,114820.0,0.3136547]
[1761677303775,0.7336231,114830.0,114820.0,0.3136547]
[1761677304377,0.3728231,114830.0,114820.0,0.3136547]
[1761677304781,0.3748231,114830.0,114820.0,0.3166547]
[1761677305085,0.3748231,114830.0,114820.0,0.32517035]
[1761677305384,0.3748231,114830.0,114820.0,0.32917035]
[1761677305385,0.3758231,114830.0,114820.0,0.32917035]
[1761677305692,0.2181031,114830.0,114820.0,0.32917035]
[1761677306076,0.04725,114830.0,114820.0,0.68997035]
[1761677306376,0.2181031,114830.0,114820.0,0.68997035]
[1761677306677,0.04725,114830.0,114820.0,0.84765035]
[1761677306878,0.003,114830.0,114820.0,1.01850345]
[1761677307278,0.0254,114830.0,114820.0,1.01850345]
[1761677307484,0.04725,114830.0,114820.0,1.01850345]
[1761677308287,0.0254,114830.0,114820.0,1.01850345]
[1761677308688,0.04725,114830.0,114820.0,1.01850345]
[1761677310290,0.04725,114830.0,114820.0,0.84765035]
[1761677310490,0.2181031,114830.0,114820.0,0.84765035]
[1761677312587,0.2181031,114830.0,114820.0,0.31599725]
[1761677312793,0.9155962,114830.0,114820.0,0.007]
[1761677313093,0.9155962,114830.0,114820.0,0.02853]
[1761677313788,0.9155962,114830.0,114820.0,0.02812]
[1761677314094,0.9155962,114830.0,114820.0,0.05014]
[1761677316491,0.9155962,114830.0,114820.0,0.007]
[1761677316689,1.0890493,114830.0,114820.0,0.007]
[1761677316994,0.9181962,114830.0,114820.0,0.007]
[1761677317195,1.0890493,114830.0,114820.0,0.007]
[1761677317493,0.04377,114800.0,114790.0,0.1433976]
[1761677317689,0.7462762,114800.0,114790.0,0.1433976]
[1761677318397,0.2146231,114800.0,114790.0,0.15232499]
[1761677319392,0.2146231,114800.0,114790.0,0.15332499]
[1761677319584,0.2176231,114800.0,114790.0,0.16332499]
[1761677319988,0.2176231,114800.0,114790.0,0.1533976]
[1761677320193,0.7492762,114800.0,114790.0,0.06629]
[1761677320391,0.7492762,114800.0,114790.0,0.1534043]
[1761677321394,0.5784231,114800.0,114790.0,0.1534043]
[1761677322089,0.7492762,114800.0,114790.0,0.1534043]
[1761677322594,0.5784231,114800.0,114790.0,0.1534043]
[1761677322894,0.41457,114800.0,114790.0,0.3172574]
[1761677323094,0.5854231,114800.0,114790.0,0.1464043]
[1761677325190,0.5854231,114800.0,114790.0,0.3172574]
[1761677325994,0.7562762,114800.0,114790.0,0.3172574]
[1761677326293,0.9139162,114800.0,114790.0,0.05929]
[1761677326590,0.9252762,114800.0,114790.0,0.04614]
[1761677326896,0.9252762,114800.0,114790.0,0.02412]
[1761677327090,0.9252762,114800.0,114790.0,0.04614]
[1761677327394,0.7562762,114800.0,114790.0,0.05948]
[1761677327594,0.9139162,114800.0,114790.0,0.05948]
[1761677328695,0.7562762,114800.0,114790.0,0.05948]
[1761677328894,0.9139162,114800.0,114790.0,0.05948]
[1761677332301,0.9139162,114800.0,114790.0,0.1465943]
[1761677332801,0.7562762,114800.0,114790.0,0.1465943]
[1761677333001,0.9139162,114800.0,114790.0,0.1465943]
[1761677333302,0.9139162,114800.0,114790.0,0.05948]
[1761677333802,0.9139162,114800.0,114790.0,0.04614]
[1761677334197,0.7562762,114800.0,114790.0,0.04614]
[1761677334502,0.9139162,114800.0,114790.0,0.04614]
[1761677336802,0.57221,114800.0,114790.0,0.04614]
[1761677337004,0.9139162,114800.0,114790.0,0.04614]
[1761677338305,0.9139162,114800.0,114790.0,0.1465943]
[1761677341717,0.58539564,114800.0,114790.0,0.1465943]
[1761677342019,0.74303564,114800.0,114790.0,0.1465943]
[1761677342921,0.74303564,114800.0,114790.0,0.05948]
[1761677343219,0.74303564,114800.0,114790.0,0.1465948]
[1761677345217,0.74303564,114800.0,114790.0,0.05948]
[1761677345814,0.58539564,114800.0,114790.0,0.05948]
[1761677346014,0.74303564,114800.0,114790.0,0.05948]
[1761677348012,0.01,114800.0,114790.0,0.1465948]
[1761677348323,0.04422,114820.0,114810.0,0.1447496]
[1761677348514,0.04422,114820.0,114810.0,0.3023896]
[1761677348710,0.04422,114820.0,114810.0,0.6631896]
[1761677348916,0.55806564,114840.0,114830.0,0.1447345]
[1761677349111,0.60491459,114840.0,114830.0,0.1447345]
[1761677349317,0.07328895,114840.0,114830.0,0.47320014]
[1761677349520,0.0045,114840.0,114830.0,0.83400014]
[1761677349717,0.04872,114840.0,114830.0,0.83400014]
[1761677350024,0.04872,114840.0,114830.0,0.3023745]
[1761677350223,0.06872,114840.0,114830.0,0.3043745]
[1761677351322,0.06872,114840.0,114830.0,0.47520014]
[1761677351718,0.05072,114840.0,114830.0,0.47820014]
[1761677351917,0.05072,114840.0,114830.0,0.3073745]
[1761677357323,0.05072,114840.0,114830.0,0.47820014]
[1761677358022,0.05072,114840.0,114830.0,0.22029]
[1761677358228,0.41152,114840.0,114830.0,0.3073749]
[1761677359424,0.05072,114840.0,114830.0,0.3073749]
[1761677362827,0.02878,114840.0,114830.0,0.3073749]
[1761677363040,0.05072,114840.0,114830.0,0.47820054]
[1761677365236,0.02878,114840.0,114830.0,0.47820054]
[1761677365533,0.05072,114840.0,114830.0,0.47820054]
[1761677366729,0.05072,114840.0,114830.0,0.3073749]
[1761677370229,0.05072,114840.0,114830.0,0.47820054]
[1761677373528,0.22154564,114840.0,114830.0,0.3073749]
[1761677373728,0.05072,114840.0,114830.0,0.3073749]
[1761677374433,0.05072,114840.0,114830.0,0.47820054]
[1761677374629,0.0065,114840.0,114830.0,0.47820054]
[1761677374827,0.3608,114860.0,114840.0,0.0870728]
[1761677375029,0.3608,114860.0,114850.0,0.22815564]
[1761677375030,0.42797672,114860.0,114850.0,0.22815564]
[1761677375235,0.42797672,114860.0,114850.0,0.21493]
[1761677376436,0.42997672,114860.0,114850.0,0.21693]
[1761677377341,0.60080236,114860.0,114850.0,0.0457]
[1761677377533,0.78162536,114860.0,114850.0,0.002]
[1761677377733,0.78422536,114860.0,114850.0,0.002]
[1761677378034,0.78162536,114860.0,114850.0,0.002]
[1761677378434,0.81257789,114860.0,114850.0,0.002]
[1761677380933,0.81257789,114860.0,114850.0,0.0457]
[1761677382739,1.41257789,114860.0,114850.0,0.0457]
[1761677384339,1.41257789,114860.0,114850.0,0.05933]
[1761677384540,1.38162536,114860.0,114850.0,0.05933]
[1761677385042,0.45319972,114860.0,114850.0,0.05933]
[1761677385240,0.45319972,114860.0,114850.0,0.1463997]
[1761677385541,0.45319972,114860.0,114850.0,0.31722534]
[1761677385737,0.42997672,114860.0,114850.0,0.47482534]
[1761677388142,0.42997672,114860.0,114850.0,0.3039997]
[1761677388348,0.42997672,114860.0,114850.0,0.47482534]
[1761677390645,0.38723672,114860.0,114850.0,0.47482534]
[1761677390951,0.42997672,114860.0,114850.0,0.47482534]
[1761677391445,0.02643672,114860.0,114850.0,0.83562534]
[1761677391650,0.04812595,114860.0,114850.0,0.83562534]
[1761677391847,0.04474,114860.0,114850.0,0.83562534]
[1761677392251,0.04474,114860.0,114850.0,0.6647997]
[1761677393553,0.002,114860.0,114850.0,0.83562534]
[1761677395955,0.002,114860.0,114850.0,0.83822534]
[1761677396354,0.002,114860.0,114850.0,0.83562534]
[1761677397456,0.002,114860.0,114850.0,0.6647997]
[1761677397756,0.002,114860.0,114850.0,0.83562534]
[1761677400956,0.002,114860.0,114850.0,1.43562534]
[1761677401144,0.002,114860.0,114850.0,0.83562534]
[1761677402549,0.3653,114880.0,114870.0,0.1443846]
[1761677402748,0.04724,114880.0,114870.0,0.21489]
[1761677402950,0.04724,114880.0,114870.0,0.38571564]
[1761677403451,0.04724,114880.0,114870.0,0.47277024]
[1761677403759,0.21881022,114880.0,114870.0,0.47251482]
[1761677403956,0.04824,114880.0,114870.0,0.47251482]
[1761677404356,0.02716,114880.0,114870.0,0.47251482]
[1761677404661,0.0055,114880.0,114870.0,0.64308504]
[1761677405453,0.0105,114880.0,114870.0,0.64508504]
[1761677407863,0.0105,114880.0,114870.0,1.00588504]
[1761677408064,0.0105,114880.0,114870.0,1.17645526]
[1761677408256,0.40435,114910.0,114900.0,0.39731044]
[1761677408458,0.57492022,114910.0,114900.0,0.38426022]
[1761677409465,0.58892022,114910.0,114900.0,0.38626022]
[1761677409655,0.58892022,114910.0,114900.0,0.21569]
[1761677409962,0.58892022,114910.0,114900.0,0.38626022]
[1761677410162,0.41835,114910.0,114900.0,0.38626022]
[1761677410362,0.58792022,114910.0,114900.0,0.38626022]
[1761677410562,0.58292022,114910.0,114900.0,0.38626022]
[1761677410958,0.58292022,114910.0,114900.0,0.47329202]
[1761677412571,0.41235,114910.0,114900.0,0.47329202]
[1761677412772,0.41235,114910.0,114900.0,0.65257296]
[1761677412975,0.58292022,114910.0,114900.0,0.65257296]
[1761677413171,0.58292022,114910.0,114900.0,0.48200274]
[1761677414673,0.41235,114910.0,114900.0,0.48200274]
[1761677414874,0.58292022,114910.0,114900.0,0.48200274]
[1761677415070,0.58292022,114910.0,114900.0,0.38626022]
[1761677415270,0.41235,114910.0,114900.0,0.47329202]
[1761677415471,0.58292022,114910.0,114900.0,0.47329202]
[1761677415673,0.60735671,114910.0,114900.0,0.47329202]
[1761677415870,0.43678649,114910.0,114900.0,0.47329202]
[1761677416375,0.60735671,114910.0,114900.0,0.47329202]
[1761677416678,0.60735671,114910.0,114900.0,0.48204967]
[1761677417379,0.61871671,114910.0,114900.0,0.18109]
[1761677417572,0.60735671,114910.0,114900.0,0.38626022]
[1761677418573,0.60735671,114910.0,114900.0,0.39495332]
[1761677419274,0.43678649,114910.0,114900.0,0.39495332]
[1761677419472,0.60735671,114910.0,114900.0,0.39495332]
[1761677420479,0.43678649,114910.0,114900.0,0.39495332]
[1761677420679,0.43678649,114910.0,114900.0,0.65255534]
[1761677420878,0.39323649,114910.0,114900.0,0.65255534]
[1761677421181,0.03243412,114910.0,114900.0,0.82312556]
[1761677421382,0.008,114910.0,114900.0,0.82312556]
[1761677421681,0.008,114910.0,114900.0,1.18392556]
[1761677421882,0.008,114910.0,114900.0,1.01335534]
[1761677422575,0.001,114910.0,114900.0,1.01135534]
[1761677422777,0.002,114910.0,114900.0,1.01235534]
[1761677423078,0.02345,114910.0,114900.0,0.1528949]
[1761677423378,0.21612022,114910.0,114900.0,0.39395332]
[1761677423680,0.06998268,114910.0,114900.0,0.65155534]
[1761677424076,0.06998268,114910.0,114900.0,0.3104149]
[1761677424381,0.06998268,114910.0,114900.0,0.65155534]
[1761677424978,0.2405529,114910.0,114900.0,0.48098512]
[1761677425183,0.06998268,114910.0,114900.0,0.48098512]
[1761677425385,0.2405529,114910.0,114900.0,0.48098512]
[1761677425584,0.21612022,114910.0,114900.0,0.48098512]
[1761677425778,0.04555,114910.0,114900.0,0.48098512]
[1761677425975,0.21612022,114910.0,114900.0,0.48098512]
[1761677426285,0.04555,114910.0,114900.0,0.65155534]
[1761677426688,0.02345,114910.0,114900.0,0.65155534]
[1761677426978,0.04555,114910.0,114900.0,0.65155534]
[1761677427384,0.02345,114910.0,114900.0,0.65155534]
[1761677427587,0.002,114910.0,114900.0,0.65155534]
[1761677428987,0.002,114910.0,114900.0,1.01235534]
[1761677429582,0.99034322,114940.0,114930.0,0.05617]
[1761677429880,0.45201768,114940.0,114930.0,0.05617]
[1761677430076,0.79315812,114940.0,114930.0,0.05617]
[1761677430684,0.79315812,114940.0,114930.0,0.04297]
[1761677430892,0.80515812,114940.0,114930.0,0.04497]
[1761677431484,0.83611065,114940.0,114930.0,0.04497]
[1761677432089,0.49497021,114940.0,114930.0,0.05817]
[1761677432389,0.83611065,114940.0,114930.0,0.05817]
[1761677433980,0.80515812,114940.0,114930.0,0.05817]
[1761677434174,0.83611065,114940.0,114930.0,0.05817]
[1761677434373,0.80515812,114940.0,114930.0,0.05817]
[1761677434976,1.40515812,114940.0,114930.0,0.05817]
[1761677435177,1.43611065,114940.0,114930.0,0.05817]
[1761677435581,1.26554043,114940.0,114930.0,0.05817]
[1761677435782,0.66554043,114940.0,114930.0,0.22874022]
[1761677435992,0.6345879,114940.0,114930.0,0.22874022]
[1761677437188,0.66554043,114940.0,114930.0,0.22874022]
[1761677437381,0.6345879,114940.0,114930.0,0.22874022]
[1761677437580,0.6345879,114940.0,114930.0,0.31574932]
[1761677437786,0.44079468,114940.0,114930.0,0.31574932]
[1761677440382,0.42979468,114940.0,114930.0,0.31374932]
[1761677440588,0.43779468,114940.0,114930.0,0.31474932]
[1761677441591,0.39424468,114940.0,114930.0,0.31474932]
[1761677441890,0.41596468,114940.0,114930.0,0.31474932]
[1761677442190,0.03344468,114940.0,114930.0,0.31474932]
[1761677442488,0.05516468,114940.0,114930.0,0.31474932]
[1761677443284,0.03344468,114940.0,114930.0,0.48791954]
[1761677443586,0.04937,114960.0,114950.0,0.145104]
[1761677443891,0.04937,114960.0,114950.0,0.47311422]
[1761677444190,0.04937,114960.0,114950.0,0.83391422]
[1761677445290,0.02622,114960.0,114950.0,1.00448444]
[1761677445485,0.0045,114960.0,114950.0,1.00448444]
[1761677445683,0.40567,114980.0,114970.0,0.05811]
[1761677445882,0.40567,114980.0,114970.0,0.39497148]
[1761677446282,0.40567,114980.0,114970.0,0.38997148]
[1761677446684,0.58760022,114980.0,114970.0,0.19778]
[1761677446982,0.76617044,114980.0,114970.0,0.19878]
[1761677447286,0.04487,114960.0,114950.0,0.1538128]
[1761677447485,0.04487,114960.0,114950.0,0.48190302]
[1761677447788,0.04487,114960.0,114950.0,0.84270302]
[1761677448488,0.02172,114960.0,114950.0,0.84270302]
[1761677448683,0.59360022,114980.0,114970.0,0.05811]
[1761677448884,0.59360022,114980.0,114970.0,0.21559]
[1761677449186,0.58760022,114980.0,114970.0,0.21559]
[1761677449791,0.76217044,114980.0,114970.0,0.21559]
[1761677450088,0.42103,114980.0,114970.0,0.21559]
[1761677450291,0.76217044,114980.0,114970.0,0.21559]
[1761677450684,0.04487,114960.0,114950.0,0.22868022]
[1761677450991,0.04487,114960.0,114950.0,0.48176033]
[1761677451891,0.40567,114960.0,114950.0,0.48176033]
[1761677452585,0.04487,114960.0,114950.0,0.48276033]
[1761677454791,0.04487,114960.0,114950.0,0.21659]
[1761677454992,0.57624022,114960.0,114950.0,0.38716022]
[1761677455289,0.40567,114960.0,114950.0,0.38716022]
[1761677455585,0.40567,114960.0,114950.0,0.47415422]
[1761677455790,0.40567,114960.0,114950.0,0.38716022]
[1761677456590,0.57624022,114960.0,114950.0,0.47415422]
[1761677457383,0.57624022,114960.0,114950.0,0.4828069]
[1761677458387,0.21544022,114960.0,114950.0,0.4828069]
[1761677458886,0.04487,114960.0,114950.0,0.4828069]
[1761677460189,0.75817044,114960.0,114950.0,0.04634]
[1761677460393,0.78225272,114960.0,114950.0,0.21655]
[1761677460786,0.38488228,114960.0,114950.0,0.38712022]
[1761677460991,0.40567,114970.0,114960.0,0.1450964]
[1761677461287,0.42975515,114970.0,114960.0,0.48623684]
[1761677461488,0.06895515,114970.0,114960.0,0.48623684]
[1761677461687,0.04487,114970.0,114960.0,0.48623684]
[1761677462295,0.04487,114970.0,114960.0,0.48923684]
[1761677462884,0.04487,114970.0,114960.0,0.31866662]
[1761677463696,0.40567,114970.0,114960.0,0.31840005]
[1761677463891,0.57597365,114970.0,114960.0,0.06111]
[1761677464485,0.59986203,114970.0,114960.0,0.06111]
[1761677464691,0.61122203,114970.0,114960.0,0.04834]
[1761677464993,0.61122203,114970.0,114960.0,0.003]
[1761677465689,0.63444503,114970.0,114960.0,0.003]
[1761677468295,0.65444503,114970.0,114960.0,0.003]
[1761677468801,0.83507821,114970.0,114930.0,0.0997739]
[1761677469000,0.04585,114940.0,114930.0,0.21269]
[1761677469588,0.40665,114940.0,114930.0,0.21269]
[1761677469993,0.40665,114940.0,114930.0,0.21569]
[1761677470501,0.57695365,114940.0,114930.0,0.21569]
[1761677471395,0.40665,114940.0,114930.0,0.06405]
[1761677471592,0.40665,114940.0,114930.0,0.22169]
[1761677472293,0.57695365,114940.0,114930.0,0.22169]
[1761677472703,0.40665,114940.0,114930.0,0.22169]
[1761677472905,0.57695365,114940.0,114930.0,0.22169]
[1761677473290,0.40665,114940.0,114930.0,0.22169]
[1761677478208,0.58831365,114940.0,114930.0,0.20892]
[1761677478505,0.58831365,114940.0,114930.0,0.16664]
[1761677479013,0.61222255,114940.0,114930.0,0.1877]
[1761677479211,0.58831365,114940.0,114930.0,0.1877]
[1761677479418,0.57695365,114940.0,114930.0,0.22211]
[1761677480217,0.58831365,114940.0,114930.0,0.20892]
[1761677480511,0.74591365,114940.0,114930.0,0.20892]
[1761677481317,0.74591365,114940.0,114930.0,0.009]
[1761677481504,0.04585,114920.0,114910.0,0.04237219]
[1761677481710,0.58515365,114920.0,114910.0,0.04237219]
[1761677482918,0.58515365,114920.0,114910.0,0.05556219]
[1761677483519,0.40665,114920.0,114910.0,0.05556219]
[1761677484215,0.40665,114920.0,114910.0,0.06807235]
[1761677484515,0.40665,114920.0,114910.0,0.238376]
[1761677484715,0.40665,114920.0,114910.0,0.06807235]
[1761677487320,0.40665,114920.0,114910.0,0.05956219]
[1761677490521,0.40665,114920.0,114910.0,0.06830872]
[1761677493315,0.38409,114920.0,114910.0,0.32563667]
[1761677493515,0.3608,114920.0,114910.0,0.32563667]
[1761677493711,0.3608,114930.0,114910.0,0.41526097]
[1761677493918,0.40354,114930.0,114920.0,0.38506365]
[1761677494117,0.04274,114930.0,114920.0,0.38506365]
[1761677495224,0.04274,114930.0,114920.0,0.47208035]
[1761677496327,0.04474,114930.0,114920.0,0.47208035]
[1761677497328,0.04374,114930.0,114920.0,0.47508035]
[1761677500240,0.02263,114930.0,114920.0,0.47508035]
[1761677501041,0.04374,114930.0,114920.0,0.47508035]
[1761677502342,0.40454,114930.0,114920.0,0.47508035]
[1761677506549,0.04374,114930.0,114920.0,0.47508035]
[1761677508749,0.001,114930.0,114920.0,0.47508035]
[1761677509645,0.02263,114930.0,114920.0,0.47508035]
[1761677510256,0.001,114930.0,114920.0,0.47508035]
[1761677512856,0.04374,114930.0,114920.0,0.3047767]
[1761677513050,0.40454,114930.0,114920.0,0.38806365]
[1761677513958,0.40454,114930.0,114920.0,0.47508035]
[1761677514151,0.40454,114930.0,114920.0,0.38806365]
[1761677514351,0.57484365,114930.0,114920.0,0.21776]
[1761677517355,0.40454,114930.0,114920.0,0.47508035]
[1761677520263,0.40454,114930.0,114920.0,0.3047767]
[1761677520454,0.40454,114930.0,114920.0,0.47508035]
[1761677520654,0.3618,114930.0,114920.0,0.47508035]
[1761677520855,0.001,114930.0,114920.0,0.83588035]
[1761677521860,0.001,114930.0,114920.0,1.008784]
[1761677522058,0.3608,114940.0,114930.0,0.1441691]
[1761677522258,0.40354,114940.0,114930.0,0.31447275]
[1761677524664,0.40354,114940.0,114930.0,0.31547275]
[1761677524871,0.40354,114940.0,114930.0,0.05816]
[1761677525053,0.4149,114940.0,114930.0,0.04462]
[1761677525259,0.60917921,114940.0,114930.0,0.04462]
[1761677525464,0.43887556,114940.0,114930.0,0.04462]
[1761677525967,0.60929543,114940.0,114930.0,0.22769987]
[1761677526266,0.43887556,114940.0,114930.0,0.22769987]
[1761677526467,0.59793543,114940.0,114930.0,0.22769987]